Cogmind - Beta 15 @@@ ROGUE MODE // 2025.09.02 @ 12:42:04 Player: Skuld Result: Destroyed by Autobeam Turret with Autobeam Performance ------------- Evolutions (0) 0 Regions Visited (2) 400 Robots Destroyed (15) 75 Value Destroyed (263) 263 Prototype IDs (0) 0 Alien Tech Used (0) 0 Bonus (0) 0 TOTAL SCORE: 738 Bonus ------- None Cogmind --------- Core Integrity 0/250 Matter 300/300 Energy 100/100 System Corruption 0% Temperature Cool (24) Movement Walking (470) Ox5 Location -10/Subcaves Parts ------- > --- POWER (1) -------- (None) > --- PROPULSION (2) --- Carbon-fiber Leg Myomer Leg > --- UTILITY (2) ------ Humpback > --- WEAPON (2) ------- Light Assault Rifle Light Assault Rifle > --- INVENTORY (35) --- Subdweller Power Source Subdweller Power Source Subdweller Power Source Subdweller Monowheel Subdweller Monowheel Improved Heat Sink Disposable Heat Sink Disposable Heat Sink Small Storage Unit Subdweller Optics Subdweller Optics Subdweller Optics Subdweller Optics Phase Shifter Utility Shielding Medium Armor Plating Medium Armor Plating Subdweller Laser Subdweller Laser Subdweller Laser Subdweller Machine Gun Battle Cannon Scrap Shield Fragment (49) Scrap Shield Fragment (49) Scrap Shield Fragment (46) Scrap Shield Fragment (46) Scrap Shield Fragment (42) Peak State ------------ > --- POWER ------------ Light Angular Momentum Engine > --- PROPULSION ------- Carbon-fiber Leg Myomer Leg > --- UTILITY ---------- Humpback > --- WEAPON ----------- Light Assault Rifle Light Assault Rifle > --- INVENTORY -------- Subdweller Power Source Subdweller Power Source Subdweller Power Source Subdweller Monowheel Subdweller Monowheel Improved Heat Sink Disposable Heat Sink Disposable Heat Sink Small Storage Unit Subdweller Optics Subdweller Optics Subdweller Optics Phase Shifter Utility Shielding Medium Armor Plating Medium Armor Plating Subdweller Laser Subdweller Laser Subdweller Laser Light Assault Rifle Subdweller Machine Gun Battle Cannon Scrap Shield Fragment Scrap Shield Fragment Scrap Shield Fragment Scrap Shield Fragment Scrap Shield Fragment [Rating: 24] Favorites ----------- Power Light Angular Momentum Engine Engine Light Angular Momentum Engine Propulsion Myomer Leg Leg Myomer Leg Utility Humpback Device Sensor Array Storage Humpback Protection Medium Armor Plating Weapon Light Assault Rifle Ballistic Gun Light Assault Rifle Build | -11 -10 -10 ------- Run | Yrd Mat Sub Slots Evolved . | . . . Power . | . . . Propulsion . | . . . Utility . | . . . Weapon . | . . . Parts Attached 16 | 6 1 9 Power 3 | 1 . 2 Engine 3 | 1 . 2 Core . | . . . Reactor . | . . . Propulsion 4 | 2 . 2 Treads . | . . . Leg 4 | 2 . 2 Wheel . | . . . Hover . | . . . Flight . | . . . Utility 5 | 1 1 3 Device 1 | . . 1 Storage 2 | 1 . 1 Processor . | . . . Hackware . | . . . Protection 2 | . 1 1 Artifact . | . . . Weapon 4 | 2 . 2 Energy Gun . | . . . Energy Cannon . | . . . Ballistic Gun 4 | 2 . 2 Ballistic Cannon . | . . . Launcher . | . . . Special Weapon . | . . . Impact Weapon . | . . . Slashing Weapon . | . . . Piercing Weapon . | . . . Special Melee Weapon . | . . . Unidentified Prototypes . | . . . Parts Lost 9 | . . 9 Power 3 | . . 3 Propulsion 2 | . . 2 Utility 2 | . . 2 Weapon 2 | . . 2 Highest Loss Streak 7 | . . 7 To Critical Strikes . | . . . Average Backups 18 | . 5 19 Power 2 | . 1 2 Propulsion 1 | . . 1 Utility 9 | . 2 10 Weapon 4 | . 1 4 Tool/Special . | . . . Unused Backups 20 | . . 20 Power 3 | . . 3 Propulsion 2 | . . 2 Utility 10 | . . 10 Weapon 5 | . . 5 Tool/Special . | . . . Average Slot Usage (%) 79 | . 97 78 Engine 11 | . 14 11 Leg 23 | . 28 23 Storage 14 | . 14 14 Ballistic Gun 28 | . 28 28 Peak Build Rating 24 | 6 8 24 Average Rating 19 | 5 7 20 On Entrance 4 | . 6 8 Naked Turns . | . . . Heaviest Build 211 | 10 17 211 Greatest Support 40 | 20 20 40 Greatest Overweight (x) 67 | 2 . 67 Average Overweight (x) 4 | . . 6 Largest Inventory Capacity 35 | 8 8 35 Average Capacity 31 | 7 8 33 Most Carried 29 | 2 7 29 Average Carried 22 | . 5 23 Final Capacity 35 | 8 8 35 Final Carried 27 | 2 7 27 Class Distribution -------------------- 89% | Hauler-Mutant 10% | Mutant Dominant Class ---------------- Mutant | -10/Materials Hauler-Mutant | -10/Subcaves Resources | -11 -10 -10 ----------- Run | Yrd Mat Sub Matter Collected 514 | 284 70 160 Remotely . | . . . Salvage Created 435 | 144 105 186 Parts 31 | 9 7 15 Haulers Intercepted . | . . . Recyclers Shooed . | . . . Parts Field Recycled . | . . . Retrieved Matter . | . . . Parts Self-Destructed 11 | . . 11 Prevented . | . . . Kills | -11 -10 -10 ------- Run | Yrd Mat Sub Combat Hostiles Destroyed 10 | . 5 5 Guns 10 | . 5 5 Classes Destroyed 5 | 2 2 1 Tunneler 3 | 3 . . Recycler 1 | 1 . . Watcher 1 | . 1 . Swarmer 6 | . 5 1 Subdweller 4 | . . 4 Best Kill Streak 4 | 3 4 2 Combat Bots Only 2 | . 2 2 Max Kills in Single Turn 1 | 1 1 1 Gunslinging . | . . . Exploded . | . . . Melee . | . . . Uniques/NPCs Destroyed . | . . . Combat | -11 -10 -10 -------- Run | Yrd Mat Sub Hostile Shots Fired 122 | . 44 78 Missed 35 | . 11 24 Hits 87 | . 33 54 Projectile 87 | . 33 54 Critical Strikes 1 | . . 1 Damage Taken 1250 | . 259 991 Core 252 | . 37 215 Absorbed by Shields . | . . . Core Remaining (%) 100 | 100 . . Volleys Fired 93 | 12 40 41 Largest 2 | 2 2 2 Hottest 40 | 40 40 40 Shots Fired 184 | 24 80 80 Gun 184 | 24 80 80 Cannon . | . . . Launcher . | . . . Special . | . . . Kinetic 184 | 24 80 80 Thermal . | . . . Explosive . | . . . Electromagnetic . | . . . Robot Hit Streak 18 | 10 5 18 Robot Miss Streak 3 | 1 3 1 Penetration Max . | . . . Secondary Targets . | . . . Shots Hit Robots 97 | 20 20 57 Core Hits 39 | 7 11 21 Critical Kills . | . . . Critical Parts Destroyed . | . . . Critical Strikes 1 | . . 1 Destroy 1 | . . 1 Melee Attacks . | . . . Impact . | . . . Slashing . | . . . Piercing . | . . . Sneak Attacks . | . . . Combat Hostiles . | . . . Follow-up Attacks . | . . . Damage Inflicted 848 | 163 182 503 Guns 848 | 163 182 503 Cannons . | . . . Explosions . | . . . Melee . | . . . Ramming . | . . . Kinetic 848 | 163 182 503 Thermal . | . . . Explosive . | . . . Electromagnetic . | . . . Impact . | . . . Slashing . | . . . Piercing . | . . . Highest Corruption . | . . . Average Corruption . | . . . Corruption Purged . | . . . Corruption Blocked . | . . . Overload Shots . | . . . Overflow Damage . | . . . Projectiles . | . . . Explosions . | . . . Melee . | . . . Knockbacks . | . . . Impact . | . . . Kinetic . | . . . Secondary . | . . . Self-Inflicted Damage . | . . . Shots . | . . . Rammed . | . . . Targets Rammed . | . . . Kicked . | . . . Crushed . | . . . Highest Temperature 277 | . 12 277 Average Temperature 28 | . 6 155 Received Heat Transfer 529 | . . 529 Siege Activations . | . . . Martial Activations . | . . . Shielding Activations . | . . . Robots Disrupted . | . . . Combat Hostiles . | . . . Robots Corrupted . | . . . Combat Hostiles . | . . . Parts Fried . | . . . Impact Corruptions . | . . . Robots Melted . | . . . Combat Hostiles . | . . . Parts Melted 1 | . . 1 Heat Transferred . | . . . Parts Sabotaged . | . . . Parts Stolen . | . . . Parts Stripped . | . . . Power Chain Reactions . | . . . Alert | -11 -10 -10 ------- Run | Yrd Mat Sub Maximum Alert Level . | . . . Low Security (%) 100 | 100 100 . Level 1 . | . . . Level 2 . | . . . Level 3 . | . . . Level 4 . | . . . Level 5 . | . . . High Security . | . . . Max Security . | . . . Peak Influence 57 | 15 57 . Initial . | . . . Average 16 | 2 21 . Influence Increases 167 | 20 127 20 Destroy 0b10 Robot/C 120 | . 100 20 Destroy 0b10 Robot/NC 25 | 20 5 . Destroy Leader 22 | . 22 . Influence Decreases 157 | 20 120 17 Entered New Map 4 | . . 4 Time Decay 143 | 20 120 3 Lost Part 10 | . . 10 Squads Dispatched . | . . . Investigation . | . . . Extermination . | . . . Reinforcement . | . . . Assault . | . . . Garrison . | . . . Intercept . | . . . Searches Triggered . | . . . Construction Impeded . | . . . Haulers Reinforced . | . . . Active Scanning Responses . | . . . Cargo Convoy Interrupts . | . . . Stealth | -11 -10 -10 --------- Run | Yrd Mat Sub Distress Signals 1 | . 1 . Communications Jammed . | . . . Distress Signals . | . . . Times Spotted 23 | . 8 15 Peak Tracking Total 7 | . 4 7 Tactical Retreats . | . . . Traps | -11 -10 -10 ------- Run | Yrd Mat Sub Traps Triggered . | . . . Indirectly . | . . . Trap Hack Attempts . | . . . Triggered . | . . . Disarmed . | . . . Reprogrammed . | . . . Reused . | . . . Traps Extracted . | . . . Installed . | . . . Triggered . | . . . Machines | -11 -10 -10 ---------- Run | Yrd Mat Sub Machines Disabled . | . . . Max in Single Turn . | . . . Machines Repaired . | . . . Machines Dismantled . | . . . Machines Sabotaged . | . . . Overloaded Fab Kills . | . . . Hacking | -11 -10 -10 --------- Run | Yrd Mat Sub Machines Accessed . | . . . Terminals . | . . . Fabricators . | . . . Repair Stations . | . . . Recycling Units . | . . . Scanalyzers . | . . . Garrison Access . | . . . Total Hacks . | . . . Successful . | . . . Failed . | . . . Catastrophic . | . . . Database Lockouts . | . . . Manual . | . . . Terminals . | . . . Fabricators . | . . . Repair Stations . | . . . Recycling Units . | . . . Scanalyzers . | . . . Garrison Access . | . . . Terminal Hacks . | . . . Fabricator Hacks . | . . . Repair Station Hacks . | . . . Recycling Unit Hacks . | . . . Scanalyzer . | . . . Garrison Access Hacks . | . . . Unauthorized Hacks . | . . . Terminals . | . . . Fabricators . | . . . Repair Stations . | . . . Recycling Units . | . . . Scanalyzers . | . . . Garrison Access . | . . . Data Cores Recovered . | . . . Used . | . . . Hacking Detections . | . . . Full Trace Events . | . . . Feedback Events . | . . . Feedback Blocked . | . . . Robot Schematics Acquired . | . . . Robots Built . | . . . Authchips . | . . . Time . | . . . Total Robot Build Rating . | . . . Part Schematics Acquired . | . . . Parts Built . | . . . Authchips . | . . . Time . | . . . Total Part Build Rating . | . . . Parts Repaired . | . . . Time . | . . . Parts Recycled . | . . . Recycled Matter . | . . . Retrieved Matter . | . . . Retrieved Components . | . . . Parts Scanalyzed . | . . . Part Schematics Acquired . | . . . Parts Damaged . | . . . Bothacking | -11 -10 -10 ------------ Run | Yrd Mat Sub Used RIF Installer . | . . . Robots Hacked . | . . . Non-combat . | . . . Combat . | . . . Robot Hacks Applied . | . . . Relay Couplers Released . | . . . Fabnet Peak Effective % . | . . . Robots Rewired . | . . . Allies Hacked . | . . . Hacks Repelled . | . . . Allies | -11 -10 -10 -------- Run | Yrd Mat Sub Total Allies . | . . . Largest Group . | . . . Highest-Rated Group . | . . . Highest-Rated Ally . | . . . Total Orders . | . . . Ally Attacks . | . . . Total Damage . | . . . Kills . | . . . Allies Corrupted . | . . . Allies Melted . | . . . Intel | -11 -10 -10 ------- Run | Yrd Mat Sub Active Infowar (turns) 141 | . . 141 Sensors 141 | . . 141 Robot Analysis Total . | . . . Derelict Logs Recovered 1 | . . 1 Drone Launches . | . . . Drone Recoveries . | . . . Exploration | -11 -10 -10 ------------- Run | Yrd Mat Sub Turns Passed 5601 | 117 283 5201 Spaces Moved 1136 | 67 144 925 Core 34 | 11 . 23 Treads . | . . . Legs 1102 | 56 144 902 Wheels . | . . . Hover . | . . . Flight . | . . . Fastest Speed 50 | 50 120 120 Average Speed 443 | 112 120 518 Slowest Speed 3400 | 150 120 3400 Overloaded Moves . | . . . Propulsion Burnouts . | . . . Robots Hopped . | . . . Potential Cave-ins . | . . . Cave-ins Triggered . | . . . Exploration Rate (%) 24 | 5 28 40 Regions Visited 2 Branch Regions 1 Pre-discovered Areas 1 | . . 1 Known Exits Taken . | . . . Unknown Exits Taken 2 | 1 1 . Scrap Searched . | . . . Spaces Dug . | . . . Terrain Destroyed . | . . . Melee . | . . . Projectile . | . . . AOE . | . . . Terrain Rammed . | . . . Walls Destroyed . | . . . Machines Disabled . | . . . Actions | -11 -10 -10 --------- Run | Yrd Mat Sub Total 1546 | 86 189 1271 Wait 268 | . . 268 Move 1134 | 66 143 925 Hop . | . . . Pick Up 32 | 2 5 25 Fast Attach 9 | 6 1 2 Attach 7 | . . 7 Detach 2 | . . 2 Swap 1 | . . 1 Drop . | . . . Fire 93 | 12 40 41 Melee . | . . . Ram . | . . . Kick . | . . . Crush . | . . . Escape Stasis . | . . . Rewire . | . . . Trap . | . . . Miscellaneous . | . . . Route ------- -11/Scrapyard -10/Materials (discovered 2 exits: [*Min] / [*Sub]) -10/Subcaves History --------- Turn | Location | Event 18 | -11/Scrapyard | Discovered new exit (range 16) 118 | -11/Scrapyard | Entered Materials 201 | -10/Materials | Discovered new exit (range 6) 304 | -10/Materials | Build established: Mutant 379 | -10/Materials | Discovered new exit (range 15) 401 | -10/Materials | Entered Subcaves 412 | -10/Subcaves | Learned location of Zion (-7) 412 | -10/Subcaves | Met a Zionite searching for "candidates" 572 | -10/Subcaves | Ambushed by swarm of Subdwellers 576 | -10/Subcaves | Ambushed by Subdwellers from Twisted Machinery 585 | -10/Subcaves | Ambushed by Subdwellers from Twisted Machinery 606 | -10/Subcaves | Core integrity fell below 50% 623 | -10/Subcaves | Core integrity fell below 20% 626 | -10/Subcaves | Lost 3 allies 657 | -10/Subcaves | Lost 7 parts (2p2n2u1w) 904 | -10/Subcaves | Build established: Hauler-Mutant 2408 | -10/Subcaves | A swath of the cavern ceiling suddenly collapsed 3178 | -10/Subcaves | Shifting Twisted Machinery released Barrage Gun 3180 | -10/Subcaves | Shifting Twisted Machinery released Sub. Optics 3210 | -10/Subcaves | Learned Materials security intel 3487 | -10/Subcaves | A swath of the cavern ceiling suddenly collapsed 5602 | -10/Subcaves | Destroyed by Autobeam Turret with Autobeam Last Messages --------------- Acquired 31 matter. Subatomizers dissect the Disposable Heat Sink. A swath of the cavern ceiling suddenly collapses. Acquired 12 matter. Use the buttons at the bottom right of the parts list, or press c/e/w/q, to visualize various stats related to parts and inventory items. Acquired Sub. Optics. Experienced players can activate Tactical HUD mode in the options menu, or press Ctrl-F7, for more detailed HUD info. S-10 Pest destroyed. Lgt. Ion Engine fries itself beyond repair. Subatomizers dissect the Flight Unit. Flight Unit fries itself beyond repair. Lgt. Assault Rifle fries itself beyond repair. Acquired 2 matter. Lgt. Angular Momentum Engine destroyed. Map ----- +----------------------------------------------------+ | ?????????????????????????????????????????????????? | | ?????????????????????????????????????????????????? | | ????????????????????????????????????????????###??? | | ???????????????????????????????????????###### ##?? | | ???????????????????????????????? ### ##? | | ???????????????????????????????????? ## | | ????????????????????????????????????????##?#% | | ????????????????????????????????????????# ## | | ???????????????????????????????????????###" %% "# | | ???????????????????????????????????????# # # | | ???????????????????????????????????????# % %% # | | ??????????????????????????????????????## # %% %% | | ??????????????????????????????????????# ## % | | ???????????????????????????????####???# ## % | | ???????????????????????????????# ##??## ###### | | ??????????????????????????????## ##### ##???# | | ?????????????? ???????????????# ## ##?# | | ???????????? ??#?##??####?# ### ### | | ???????????# # # ### ### #% #### | | ??????????? ## % #??? | | ???????????# !% ## #??# | | ????????????# ## # ### #?# | | ???????????????????????## ## ### ##? | | ????????????????????# ??# ###? ## | | ?????????????????????# # ##??## ## | | ?????????????????????# @ ### ##?? ? | | ?????????????????????# ###?## #? #?## | | ?????????????????????## ##???# ### ##?# # | | ??????????????????????## #????## # #?# # | | ???????????????????????# ##????# #??# #? | | ???????????????????????# #?????## # ##?## #? | | ???????????????????????# #?????# ###### ## | | ???????????????????????# #?????## ### # | | ???????????????????????# #??????# | | ???????????????????????# #??????## | | ???????????????????????# #???????##### #### | | ???????????????????????# #???????????####??# | | ???????????????????????# #???????####?###### | | ????????????????????????sss???????## ### | | ???????????????????????? ??????## ## % | | ???????????????????????? ?????## | | ????????????????????????????????# | | ????????????????????????????????# ## | | ????????????????????????????????# ## ## | | ????????????????????????????????# ## | | ????????????????????????????????# ## # | | ????????????????????????????????# #### ## | | ????????????????????????????????## #??## ##? | | ?????????????????????????????????## #???## #?# | | ??????????????????????????????????# ##???# #?# | +----------------------------------------------------+ Best States ------------- Heat Dissipation 25 Energy Generation 18 Energy Capacity 150 Matter Stores 300 Matter Capacity 300 Sight Range 16 Robot Scan Range 14 Terrain Scan Density 10 Armor Coverage 225 Utility Shielding 33 Evasion (%) 55 Item Schematics ----------------- None Robot Schematics ------------------ None Fabricated ------------ Nothing Repaired ---------- Nothing Alien Tech Used ----------------- None Achievements -------------- Tank Challenges ------------ None Game ------ Seed AssembledLayeredFlamer Manual? 0 Play Time 00:17:07 Cumulative 3.6 hours Start 2025.09.02 @ 12:25:31 End 2025.09.02 @ 12:42:04 Sessions 1 Manual Loads 0 Difficulty Rogue Special Mode None Game No. 5 Rogue 5 Adventurer 0 Explorer 0 Win Type - Total 0 Types 0/0/0/0/0/0/0/0/0/0 Lore% 0 Gallery% 4 Achievement% 7 Wizard Run 0 Options --------- Layout 1 ASCII 0 Keyboard 1 Movement Arrows Keybinds 0 Fullscreen 1 Font 48/Smallcaps Map View 50x35 Zoom Use 0% Tactical HUD 0 Map Filters NONE Filters NONE Steam 0 RUN: f501991c-cd10-40c1-bc24-db3aab80f5a8